fUST/lending_fUST_20250812
["ID","MTS","AMOUNT","RATE_DAILY","PERIOD"]
[378720323,1754989867060,-1000.0,0.00020021,2]
[378720324,1754989867070,-1000.0,0.00020021,2]
[378720325,1754989867080,-500.0,0.00020027,2]
[378720326,1754989867090,-201.80880864,0.00020027,2]
[378720327,1754989867099,-212.52941622,0.00020027,2]
[378720328,1754989867108,-3056.0,0.00020027,2]
[378720329,1754989867119,-500.0,0.00020027,2]
[378720330,1754989867130,-871.3981615,0.00020027,2]
[378720331,1754989867139,-1052.72932865,0.00020062,2]
[378720332,1754989867149,-500.0,0.00020097,2]
[378720333,1754989867159,-506.25103804,0.00020178,2]
[378720334,1754989867169,-511.44,0.00020186,2]
[378720335,1754989867184,-460.0,0.00020186,2]
[378720336,1754989867194,-778.07,0.00020186,2]
[378720337,1754989867203,-460.0,0.00020186,2]
[378720338,1754989867213,-695.2,0.00020186,2]
[378720339,1754989867222,-3994.01,0.00020186,2]
[378720340,1754989867233,-211.33442873,0.00020186,2]
[378720341,1754989867247,-607.67,0.00020186,2]
[378720342,1754989867257,-2824.63,0.00020186,2]
[378720343,1754989867267,-496.78,0.00020186,2]
[378720344,1754989867277,-850.45,0.00020186,2]
[378720345,1754989867286,-2881.31,0.00020187,2]
[378720346,1754989867296,-624.47,0.00020187,2]
[378720347,1754989867305,-580.14,0.00020187,2]
[378720348,1754989867314,-1844.43,0.00020187,2]
[378720349,1754989867324,-3780.92,0.00020187,2]
[378720350,1754989867333,-852.8,0.00020187,2]
[378720351,1754989867342,-1219.8,0.00020187,2]
[378720352,1754989867352,-801.24,0.00020187,2]
[378720353,1754989867361,-1272.56,0.00020187,2]
[378720354,1754989867370,-832.96,0.00020187,2]
[378720355,1754989867380,-1059.69,0.00020187,2]
[378720356,1754989867389,-1297.9,0.00020187,2]
[378720357,1754989867399,-1696.21,0.00020187,2]
[378720358,1754989867409,-459.210146,0.00020187,2]
[378720359,1754989867418,-460.0,0.00020189,2]
[378720360,1754989867427,-535.01,0.00020189,2]
[378720361,1754989867436,-550.07679874,0.00020189,2]
[378720362,1754989867446,-460.0,0.00020189,2]
[378720363,1754989867456,-856.74,0.00020189,2]
[378720364,1754989867466,-601.61,0.00020189,2]
[378720365,1754989867476,-622.63,0.00020189,2]
[378720366,1754989867485,-460.0,0.00020189,2]
[378720367,1754989867495,-460.0,0.00020189,2]
[378720368,1754989867505,-460.0,0.00020189,2]
[378720369,1754989867515,-460.0,0.00020189,2]
[378720370,1754989867524,-460.0,0.00020189,2]
[378720371,1754989867535,-582.68,0.00020189,2]
[378720372,1754989867544,-310.58156388,0.00020189,2]
[378720373,1754989867554,-460.0,0.00020189,2]
[378720374,1754989867563,-460.0,0.00020189,2]
[378720375,1754989867573,-519.88,0.00020189,2]
[378720376,1754989867583,-913.33,0.00020189,2]
[378720377,1754989867592,-689.99,0.00020189,2]
[378720378,1754989867602,-460.0,0.00020189,2]
[378720379,1754989867611,-460.0,0.00020189,2]
[378720380,1754989867621,-460.0,0.00020189,2]
[378720381,1754989867630,-460.0,0.00020189,2]
[378720382,1754989867640,-731.05,0.00020189,2]
[378720383,1754989867650,-460.0,0.00020189,2]
[378720384,1754989867659,-460.0,0.00020189,2]
[378720385,1754989867669,-839.52,0.00020189,2]
[378720386,1754989867678,-980.86,0.00020189,2]
[378720387,1754989867692,-816.4,0.00020189,2]
[378720388,1754989867702,-460.0,0.00020189,2]
[378720389,1754989867712,-575.45,0.00020189,2]
[378720390,1754989867721,-866.6,0.00020189,2]
[378720391,1754989867732,-460.0,0.00020189,2]
[378720392,1754989867741,-460.0,0.00020189,2]
[378720393,1754989867752,-638.72,0.00020189,2]
[378720394,1754989867763,-460.0,0.00020189,2]
[378720395,1754989867773,-460.0,0.00020189,2]
[378720396,1754989867784,-1440.43,0.00020189,2]
[378720397,1754989867794,-460.0,0.00020189,2]
[378720398,1754989867804,-1053.87,0.00020189,2]
[378720399,1754989867814,-679.08,0.00020189,2]
[378720400,1754989867824,-1390.83,0.00020189,2]
[378720401,1754989867834,-466.54,0.00020189,2]
[378720402,1754989867846,-460.0,0.00020189,2]
[378720403,1754989867857,-698.56,0.00020189,2]
[378720404,1754989867866,-460.0,0.00020189,2]
[378720405,1754989867876,-460.0,0.00020189,2]
[378720406,1754989867886,-187.05361478,0.00020189,2]
[378720407,1754989867896,-600.61,0.00020189,2]
[378720408,1754989867905,-688.97,0.00020189,2]
[378720409,1754989867915,-1382.57,0.00020189,2]
[378720410,1754989867926,-1743.77,0.00020189,2]
[378720411,1754989867935,-9176.97,0.00020189,2]
[378720412,1754989867945,-460.0,0.00020189,2]
[378720413,1754989867954,-880.3,0.00020189,2]
[378720414,1754989867965,-2946.27,0.00020189,2]
[378720415,1754989867976,-460.0,0.00020189,2]
[378720416,1754989867986,-598.93,0.00020189,2]
[378720417,1754989867996,-464.425778,0.00020189,2]
[378720418,1754989868006,-460.0,0.00020189,2]
[378720419,1754989868015,-4712.31,0.00020189,2]
[378720420,1754989868025,-2191.98,0.00020189,2]
[378720421,1754989868036,-460.0,0.00020189,2]
[378720422,1754989868046,-460.0,0.00020189,2]
[378720423,1754989868055,-826.58,0.00020189,2]
[378720424,1754989868064,-590.73,0.00020189,2]
[378720425,1754989868074,-460.0,0.00020189,2]
[378720426,1754989868083,-460.0,0.00020189,2]
[378720427,1754989868093,-722.38,0.00020189,2]
[378720428,1754989868103,-771.5,0.00020189,2]
[378720429,1754989868113,-1280.88,0.00020189,2]
[378720430,1754989868122,-460.0,0.00020189,2]
[378720431,1754989868131,-460.0,0.00020189,2]
[378720432,1754989868141,-460.0,0.00020189,2]
[378720433,1754989868151,-353.7,0.0002021,2]
[378720434,1754989868160,-302.0,0.0002021,2]
[378720435,1754989868170,-420.0,0.0002021,2]
[378720436,1754989868180,-300.0,0.0002021,2]
[378720437,1754989868189,-1200.0,0.00020212,2]
[378720438,1754989868198,-1500.0,0.00020268,2]
[378720439,1754989868208,-1500.0,0.00020268,2]
[378720440,1754989868217,-1500.0,0.00020268,2]
[378720441,1754989868226,-330.148708,0.00020268,2]
[378720442,1754989868236,-842.7074278,0.00020268,2]
[378720443,1754989868245,-151.35259151,0.00020274,2]
[378720444,1754989868254,-350.0,0.00020274,2]
[378720445,1754989868264,-360.0,0.00020277,2]
[378720446,1754989868273,-576.0,0.00020287,2]
[378720447,1754989868284,-2095.32,0.00020287,2]
[378720448,1754989868293,-1918.85,0.00020287,2]
[378720449,1754989868302,-2635.68,0.00020287,2]
[378720450,1754989868312,-1506.4,0.00020287,2]
[378720451,1754989868321,-1237.41,0.00020287,2]
[378720452,1754989868331,-460.0,0.00020287,2]
[378720453,1754989868340,-3087.66,0.00020287,2]
[378720454,1754989868351,-3102.53,0.00020287,2]
[378720455,1754989868360,-460.0,0.00020288,2]
[378720456,1754989868370,-1285.31,0.00020288,2]
[378720457,1754989868379,-1061.43,0.00020288,2]
[378720458,1754989868389,-660.19,0.00020288,2]
[378720459,1754989868398,-703.67,0.00020288,2]
[378720460,1754989868408,-1571.34,0.00020288,2]
[378720461,1754989868417,-479.36,0.00020288,2]
[378720462,1754989868426,-460.0,0.00020288,2]
[378720463,1754989868435,-460.0,0.00020288,2]
[378720464,1754989868447,-460.0,0.00020288,2]
[378720465,1754989868456,-961.98,0.00020288,2]
[378720466,1754989868465,-460.0,0.00020288,2]
[378720467,1754989868475,-596.7,0.00020288,2]
[378720468,1754989868484,-548.06,0.00020288,2]
[378720469,1754989868493,-851.89,0.00020288,2]
[378720470,1754989868502,-460.0,0.00020288,2]
[378720471,1754989868512,-703.0,0.00020288,2]
[378720472,1754989868522,-534.6,0.00020288,2]
[378720473,1754989868532,-1574.67,0.00020288,2]
[378720474,1754989868542,-460.0,0.00020288,2]
[378720475,1754989868551,-651.47,0.00020288,2]
[378720476,1754989868561,-460.0,0.00020288,2]
[378720477,1754989868571,-460.0,0.00020288,2]
[378720478,1754989868581,-2172.38,0.00020288,2]
[378720479,1754989868591,-460.0,0.00020288,2]
[378720480,1754989868602,-460.0,0.00020288,2]
[378720481,1754989868757,-460.0,0.00020288,2]
[378720482,1754989868769,-466.96211858,0.00020288,2]
[378720483,1754989868781,-460.0,0.00020288,2]
[378720484,1754989868790,-460.0,0.00020288,2]
[378720485,1754989868799,-460.0,0.00020288,2]
[378720486,1754989868809,-460.0,0.00020288,2]
[378720487,1754989868818,-460.0,0.00020288,2]
[378720488,1754989868828,-460.0,0.0002029,2]
[378720489,1754989868837,-460.0,0.0002029,2]
[378720490,1754989868847,-460.0,0.0002029,2]
[378720491,1754989868856,-460.0,0.0002029,2]
[378720492,1754989868866,-460.0,0.0002029,2]
[378720493,1754989868875,-519.91,0.0002029,2]
[378720494,1754989868886,-536.22,0.0002029,2]
[378720495,1754989868895,-460.0,0.0002029,2]
[378720496,1754989868904,-460.0,0.0002029,2]
[378720497,1754989868915,-460.0,0.0002029,2]
[378720498,1754989868925,-150.69773668,0.0002029,2]
[378720499,1754989868936,-460.0,0.0002029,2]
[378720500,1754989868946,-460.0,0.0002029,2]
[378720501,1754989868957,-460.0,0.0002029,2]
[378720502,1754989868967,-460.0,0.0002029,2]
[378720503,1754989868976,-460.0,0.0002029,2]
[378720504,1754989868985,-550.0,0.0002029,2]
[378720505,1754989868994,-460.0,0.0002029,2]
[378720506,1754989869003,-334.96765042,0.0002029,2]
[378720507,1754989869012,-515.1,0.0002029,2]
[378720508,1754989869021,-1117.38,0.0002029,2]
[378720509,1754989869030,-210.06870505,0.0002029,2]
[378720510,1754989869039,-460.0,0.0002029,2]
[378720511,1754989869048,-460.0,0.0002029,2]
[378720512,1754989869057,-460.0,0.0002029,2]
[378720513,1754989869066,-837.98,0.0002029,2]
[378720514,1754989869076,-460.0,0.0002029,2]
[378720515,1754989869085,-460.0,0.0002029,2]
[378720516,1754989869094,-465.5285261,0.0002029,2]
[378720517,1754989869104,-500.0,0.00020301,2]
[378720518,1754989869113,-3056.0,0.00020301,2]
[378720519,1754989869122,-500.0,0.00020301,2]
[378720520,1754989869132,-1680.0,0.00020309,2]
[378720521,1754989869141,-2000.0,0.00020316,2]
[378720522,1754989869150,-1680.00633299,0.00020316,2]
[378720523,1754989869159,-2000.0,0.00020316,2]
[378720524,1754989869168,-2000.0,0.00020316,2]
[378720525,1754989869178,-2000.0,0.00020316,2]
[378720526,1754989869186,-2000.0,0.00020316,2]
[378720527,1754989869195,-2000.0,0.00020316,2]
[378720528,1754989869204,-800.0,0.00020352,2]
[378720529,1754989869213,-353.7,0.00020399,2]
[378720530,1754989869223,-511.44,0.0002046,2]
[378720531,1754989869232,-169.68831765,0.0002046,2]
[378720532,1754989869242,-778.07,0.0002046,2]
[378720533,1754989869252,-460.0,0.0002046,2]
[378720534,1754989869261,-695.2,0.0002046,2]
[378720535,1754989869271,-3994.01,0.0002046,2]
[378720536,1754989869281,-607.67,0.0002046,2]
[378720537,1754989869291,-2824.63,0.0002046,2]
[378720538,1754989869299,-496.78,0.0002046,2]
[378720539,1754989869309,-850.45,0.0002046,2]
[378720540,1754989869318,-2881.31,0.00020461,2]
[378720541,1754989869327,-624.47,0.00020461,2]
[378720542,1754989869335,-580.14,0.00020461,2]
[378720543,1754989869344,-1844.43,0.00020461,2]
[378720544,1754989869354,-3780.92,0.00020461,2]
[378720545,1754989869363,-852.8,0.00020461,2]
[378720546,1754989869372,-1219.8,0.00020461,2]
[378720547,1754989869381,-801.24,0.00020461,2]
[378720548,1754989869391,-1272.56,0.00020461,2]
[378720549,1754989869399,-832.96,0.00020461,2]
[378720550,1754989869409,-1059.69,0.00020461,2]
[378720551,1754989869418,-1297.9,0.00020461,2]
[378720552,1754989869427,-1696.21,0.00020461,2]
[378720553,1754989869437,-460.0,0.00020463,2]
[378720554,1754989869445,-535.01,0.00020463,2]
[378720555,1754989869454,-252.25132179,0.00020463,2]
[378720556,1754989869464,-856.74,0.00020463,2]
[378720557,1754989869472,-601.61,0.00020463,2]
[378720558,1754989869482,-622.63,0.00020463,2]
[378720559,1754989869491,-460.0,0.00020463,2]
[378720560,1754989869501,-460.0,0.00020463,2]
[378720561,1754989869510,-460.0,0.00020463,2]
[378720562,1754989869519,-460.0,0.00020463,2]
[378720563,1754989869528,-460.0,0.00020463,2]
[378720564,1754989869537,-582.68,0.00020463,2]
[378720565,1754989869546,-460.0,0.00020463,2]
[378720566,1754989869555,-460.0,0.00020463,2]
[378720567,1754989869564,-519.88,0.00020463,2]
[378720568,1754989869573,-913.33,0.00020463,2]
[378720569,1754989869582,-689.99,0.00020463,2]
[378720570,1754989869591,-460.0,0.00020463,2]
[378720571,1754989869600,-460.0,0.00020463,2]
[378720572,1754989869610,-460.0,0.00020463,2]
[378720573,1754989869620,-460.0,0.00020463,2]
[378720574,1754989869629,-731.05,0.00020463,2]
[378720575,1754989869638,-460.0,0.00020463,2]
[378720576,1754989869647,-460.0,0.00020463,2]
[378720577,1754989869657,-839.52,0.00020463,2]
[378720578,1754989869666,-980.86,0.00020463,2]
[378720579,1754989869676,-816.4,0.00020463,2]
[378720580,1754989869690,-460.0,0.00020463,2]
[378720581,1754989869700,-575.45,0.00020463,2]
[378720582,1754989869710,-866.6,0.00020463,2]
[378720583,1754989869719,-257.74221816,0.00020463,2]
[378720584,1754989869729,-460.0,0.00020463,2]
[378720585,1754989869738,-638.72,0.00020463,2]
[378720586,1754989869748,-460.0,0.00020463,2]
[378720587,1754989869758,-460.0,0.00020463,2]
[378720588,1754989869769,-1440.43,0.00020463,2]
[378720589,1754989869778,-460.0,0.00020463,2]
[378720590,1754989869788,-1053.87,0.00020463,2]
[378720591,1754989869797,-679.08,0.00020463,2]
[378720592,1754989869807,-1390.83,0.00020463,2]
[378720593,1754989869816,-466.54,0.00020463,2]
[378720594,1754989869825,-460.0,0.00020463,2]
[378720595,1754989869835,-698.56,0.00020463,2]
[378720596,1754989869844,-460.0,0.00020463,2]
[378720597,1754989869854,-460.0,0.00020463,2]
[378720598,1754989869863,-600.61,0.00020463,2]
[378720599,1754989869874,-688.97,0.00020463,2]
[378720600,1754989869883,-1382.57,0.00020463,2]
[378720601,1754989869892,-1743.77,0.00020463,2]
[378720602,1754989869901,-9176.97,0.00020463,2]
[378720603,1754989869910,-460.0,0.00020463,2]
[378720604,1754989869919,-880.3,0.00020463,2]
[378720605,1754989869929,-2946.27,0.00020463,2]
[378720606,1754989869938,-460.0,0.00020463,2]
[378720607,1754989869947,-598.93,0.00020463,2]
[378720608,1754989869957,-460.0,0.00020463,2]
[378720609,1754989869966,-4712.31,0.00020463,2]
[378720610,1754989869976,-2191.98,0.00020463,2]
[378720611,1754989869985,-460.0,0.00020463,2]
[378720612,1754989869995,-460.0,0.00020463,2]
[378720613,1754989870004,-826.58,0.00020463,2]
[378720614,1754989870013,-590.73,0.00020463,2]
[378720615,1754989870023,-460.0,0.00020463,2]
[378720616,1754989870032,-460.0,0.00020463,2]
[378720617,1754989870041,-722.38,0.00020463,2]
[378720618,1754989870050,-771.5,0.00020463,2]
[378720619,1754989870060,-1280.88,0.00020463,2]
[378720620,1754989870069,-460.0,0.00020463,2]
[378720621,1754989870079,-460.0,0.00020463,2]
[378720622,1754989870089,-460.0,0.00020463,2]
[378720623,1754989870098,-335.74125724,0.00020468,2]
[378720624,1754989870108,-1500.0,0.00020468,2]
[378720625,1754989870117,-1500.0,0.00020468,2]
[378720626,1754989870126,-501.34760076,0.00020468,2]
[378720627,1754989870136,-1500.0,0.00020468,2]
[378720628,1754989870145,-160.0,0.00020518,5]
[378720629,1754989870154,-1000.0,0.00020521,2]
[378720630,1754989870163,-576.0,0.00020561,2]
[378720631,1754989870173,-2095.32,0.00020561,2]
[378720632,1754989870182,-1918.85,0.00020561,2]
[378720633,1754989870191,-2635.68,0.00020561,2]
[378720634,1754989870200,-1506.4,0.00020561,2]
[378720635,1754989870209,-1237.41,0.00020561,2]
[378720636,1754989870218,-460.0,0.00020561,2]
[378720637,1754989870227,-3087.66,0.00020561,2]
[378720638,1754989870237,-3102.53,0.00020561,2]
[378720639,1754989870247,-460.0,0.00020562,2]
[378720640,1754989870256,-1285.31,0.00020562,2]
[378720641,1754989870266,-1061.43,0.00020562,2]
[378720642,1754989870276,-660.19,0.00020562,2]
[378720643,1754989870287,-703.67,0.00020562,2]
[378720644,1754989870296,-1571.34,0.00020562,2]
[378720645,1754989870306,-479.36,0.00020562,2]
[378720646,1754989870316,-460.0,0.00020562,2]
[378720647,1754989870325,-460.0,0.00020562,2]
[378720648,1754989870334,-460.0,0.00020562,2]
[378720649,1754989870343,-961.98,0.00020562,2]
[378720650,1754989870352,-460.0,0.00020562,2]
[378720651,1754989870361,-596.7,0.00020562,2]
[378720652,1754989870370,-548.06,0.00020562,2]
[378720653,1754989870379,-851.89,0.00020562,2]
[378720654,1754989870388,-460.0,0.00020562,2]
[378720655,1754989870397,-703.0,0.00020562,2]
[378720656,1754989870406,-534.6,0.00020562,2]
[378720657,1754989870415,-1574.67,0.00020562,2]
[378720658,1754989870425,-460.0,0.00020562,2]
[378720659,1754989870434,-651.47,0.00020562,2]
[378720660,1754989870445,-460.0,0.00020562,2]
[378720661,1754989870456,-460.0,0.00020562,2]
[378720662,1754989870466,-2172.38,0.00020562,2]
[378720663,1754989870476,-460.0,0.00020562,2]
[378720664,1754989870485,-460.0,0.00020562,2]
[378720665,1754989870495,-473.41514246,0.00020562,2]
[378720666,1754989870504,-460.0,0.00020562,2]
[378720667,1754989870513,-460.0,0.00020562,2]
[378720668,1754989870523,-460.0,0.00020562,2]
[378720669,1754989870533,-460.0,0.00020562,2]
[378720670,1754989870542,-460.0,0.00020562,2]
[378720671,1754989870552,-460.0,0.00020564,2]
[378720672,1754989870561,-460.0,0.00020564,2]
[378720673,1754989870570,-460.0,0.00020564,2]
[378720674,1754989870579,-486.83812529,0.00020564,2]
[378720675,1754989870588,-460.0,0.00020564,2]
[378720676,1754989870597,-519.91,0.00020564,2]
[378720677,1754989870607,-536.22,0.00020564,2]
[378720678,1754989870616,-460.0,0.00020564,2]
[378720679,1754989870625,-463.67669307,0.00020564,2]
[378720680,1754989870635,-460.0,0.00020564,2]
[378720681,1754989870644,-460.0,0.00020564,2]
[378720682,1754989870653,-460.0,0.00020564,2]
[378720683,1754989870663,-460.0,0.00020564,2]
[378720684,1754989870674,-460.0,0.00020564,2]
[378720685,1754989870684,-460.0,0.00020564,2]
[378720686,1754989870697,-550.0,0.00020564,2]
[378720687,1754989870708,-460.0,0.00020564,2]
[378720688,1754989870717,-515.1,0.00020564,2]
[378720689,1754989870726,-1117.38,0.00020564,2]
[378720690,1754989870738,-460.0,0.00020564,2]
[378720691,1754989870749,-460.0,0.00020564,2]
[378720692,1754989870759,-837.98,0.00020564,2]
[378720693,1754989870769,-460.0,0.00020564,2]
[378720694,1754989870779,-579.40664695,0.00020564,2]
[378720695,1754989870789,-294.33572204,0.00020568,2]
[378720696,1754989870799,-1500.0,0.00020568,2]
[378720697,1754989870809,-1500.0,0.00020568,2]
[378720698,1754989870818,-1500.0,0.00020568,2]
[378720699,1754989870828,-1500.0,0.00020568,2]
[378720700,1754989870838,-1500.0,0.00020568,2]
[378720701,1754989870848,-500.0,0.00020575,2]
[378720702,1754989870858,-3056.0,0.00020575,2]
[378720703,1754989870868,-500.0,0.00020575,2]
[378720704,1754989870878,-353.7,0.00020589,2]
[378720705,1754989870887,-511.44,0.00020734,2]
[378720706,1754989870896,-460.0,0.00020734,2]
[378720707,1754989870906,-778.07,0.00020734,2]
[378720708,1754989870915,-695.2,0.00020734,2]
[378720709,1754989870925,-3994.01,0.00020734,2]
[378720710,1754989870935,-607.67,0.00020734,2]
[378720711,1754989870945,-2824.63,0.00020734,2]
[378720712,1754989870954,-496.78,0.00020734,2]
[378720713,1754989870964,-850.45,0.00020734,2]
[378720714,1754989870973,-2881.31,0.00020735,2]
[378720715,1754989870984,-624.47,0.00020735,2]
[378720716,1754989870993,-580.14,0.00020735,2]
[378720717,1754989871002,-1844.43,0.00020735,2]
[378720718,1754989871011,-3780.92,0.00020735,2]
[378720719,1754989871020,-852.8,0.00020735,2]
[378720720,1754989871030,-1219.8,0.00020735,2]
[378720721,1754989871039,-801.24,0.00020735,2]
[378720722,1754989871048,-1272.56,0.00020735,2]
[378720723,1754989871057,-832.96,0.00020735,2]
[378720724,1754989871067,-1059.69,0.00020735,2]
[378720725,1754989871076,-1297.9,0.00020735,2]
[378720726,1754989871085,-1696.21,0.00020735,2]
[378720727,1754989871094,-460.0,0.00020737,2]
[378720728,1754989871103,-535.01,0.00020737,2]
[378720729,1754989871112,-856.74,0.00020737,2]
[378720730,1754989871121,-601.61,0.00020737,2]
[378720731,1754989871130,-622.63,0.00020737,2]
[378720732,1754989871139,-460.0,0.00020737,2]
[378720733,1754989871147,-460.0,0.00020737,2]
[378720734,1754989871156,-460.0,0.00020737,2]
[378720735,1754989871165,-460.0,0.00020737,2]
[378720736,1754989871174,-460.0,0.00020737,2]
[378720737,1754989871184,-582.68,0.00020737,2]
[378720738,1754989871193,-460.0,0.00020737,2]
[378720739,1754989871202,-460.0,0.00020737,2]
[378720740,1754989871211,-519.88,0.00020737,2]
[378720741,1754989871220,-913.33,0.00020737,2]
[378720742,1754989871230,-689.99,0.00020737,2]
[378720743,1754989871239,-557.97974115,0.00020737,2]
[378720744,1754989871248,-460.0,0.00020737,2]
[378720745,1754989871257,-460.0,0.00020737,2]
[378720746,1754989871266,-460.0,0.00020737,2]
[378720747,1754989871275,-731.05,0.00020737,2]
[378720748,1754989871285,-460.0,0.00020737,2]
[378720749,1754989871294,-460.0,0.00020737,2]
[378720750,1754989871303,-839.52,0.00020737,2]
[378720751,1754989871312,-980.86,0.00020737,2]
[378720752,1754989871321,-816.4,0.00020737,2]
[378720753,1754989871330,-460.0,0.00020737,2]
[378720754,1754989871339,-575.45,0.00020737,2]
[378720755,1754989871349,-866.6,0.00020737,2]
[378720756,1754989871358,-460.0,0.00020737,2]
[378720757,1754989871367,-638.72,0.00020737,2]
[378720758,1754989871376,-460.0,0.00020737,2]
[378720759,1754989871385,-460.0,0.00020737,2]
[378720760,1754989871394,-1440.43,0.00020737,2]
[378720761,1754989871403,-460.0,0.00020737,2]
[378720762,1754989871412,-1053.87,0.00020737,2]
[378720763,1754989871422,-679.08,0.00020737,2]
[378720764,1754989871431,-1390.83,0.00020737,2]
[378720765,1754989871441,-466.54,0.00020737,2]
[378720766,1754989871450,-460.0,0.00020737,2]
[378720767,1754989871459,-698.56,0.00020737,2]
[378720768,1754989871468,-460.0,0.00020737,2]
[378720769,1754989871478,-460.0,0.00020737,2]
[378720770,1754989871487,-600.61,0.00020737,2]
[378720771,1754989871497,-688.97,0.00020737,2]
[378720772,1754989871506,-1382.57,0.00020737,2]
[378720773,1754989871514,-1743.77,0.00020737,2]
[378720774,1754989871523,-9176.97,0.00020737,2]
[378720775,1754989871533,-460.0,0.00020737,2]
[378720776,1754989871542,-880.3,0.00020737,2]
[378720777,1754989871552,-2946.27,0.00020737,2]
[378720778,1754989871561,-460.0,0.00020737,2]
[378720779,1754989871570,-598.93,0.00020737,2]
[378720780,1754989871579,-460.0,0.00020737,2]
[378720781,1754989871588,-4712.31,0.00020737,2]
[378720782,1754989871597,-2191.98,0.00020737,2]
[378720783,1754989871606,-460.0,0.00020737,2]
[378720784,1754989871616,-460.0,0.00020737,2]
[378720785,1754989871625,-826.58,0.00020737,2]
[378720786,1754989871635,-590.73,0.00020737,2]
[378720787,1754989871644,-460.0,0.00020737,2]
[378720788,1754989871653,-460.0,0.00020737,2]
[378720789,1754989871663,-722.38,0.00020737,2]
[378720790,1754989871672,-771.5,0.00020737,2]
[378720791,1754989871682,-1280.88,0.00020737,2]
[378720792,1754989871695,-460.0,0.00020737,2]
[378720793,1754989871704,-460.0,0.00020737,2]
[378720794,1754989871713,-200.0,0.00020759,15]
[378720795,1754989871722,-200.0,0.00020759,15]
[378720796,1754989871732,-200.0,0.00020759,15]
[378720797,1754989871741,-200.0,0.00020759,15]
[378720798,1754989871750,-320.0,0.00020759,15]
[378720799,1754989871762,-353.7,0.00020779,2]
[378720800,1754989871771,-325.0,0.0002079,2]
[378720801,1754989871780,-325.0,0.0002079,2]
[378720802,1754989871789,-325.0,0.0002079,2]
[378720803,1754989871798,-325.0,0.0002079,2]
[378720804,1754989871808,-325.0,0.0002079,2]
[378720805,1754989871817,-325.0,0.0002079,2]
[378720806,1754989871826,-325.0,0.0002079,2]
[378720807,1754989871835,-325.0,0.0002079,2]
[378720808,1754989871981,-325.0,0.0002079,2]
[378720809,1754989871991,-325.0,0.0002079,2]
[378720810,1754989872000,-1760.0,0.0002079,2]
[378720811,1754989872009,-1760.0,0.0002079,2]
[378720812,1754989872018,-1760.0,0.0002079,2]
[378720813,1754989872027,-625.43105529,0.0002079,2]
[378720814,1754989872037,-1760.0,0.0002079,2]
[378720815,1754989872047,-325.0,0.0002079,2]
[378720816,1754989872056,-325.0,0.0002079,2]
[378720817,1754989872065,-325.0,0.0002079,2]
[378720818,1754989872074,-325.0,0.0002079,2]
[378720819,1754989872084,-325.0,0.0002079,2]
[378720820,1754989872093,-325.0,0.0002079,2]
[378720821,1754989872102,-325.0,0.0002079,2]
[378720822,1754989872111,-325.0,0.0002079,2]